[Event "Early-Titled-Tuesday-Blitz-March-05-2024"]
[Site "Chess.com"]
[Date "2024.03.05"]
[Round "4"]
[White "Orest_Vovk"]
[Black "Nemegejas"]
[Result "0-1"]
[WhiteElo "2560"]
[BlackElo "2791"]
[TimeControl "180+1"]
[EndTime "8:42:40 PST"]
[Termination "Nemegejas won on time"]

1. h4 {[%clk 0:02:56.3]} 1... d5 {[%clk 0:02:58.3]} 2. h5 {[%clk 0:02:56.1]}
2... e5 {[%clk 0:02:58.5]} 3. h6 {[%clk 0:02:55.9]} 3... Nxh6 {[%clk 0:02:58.6]}
4. d4 {[%clk 0:02:55.5]} 4... exd4 {[%clk 0:02:59.1]} 5. Bxh6 {[%clk 0:02:55.4]}
5... gxh6 {[%clk 0:02:59.6]} 6. Qxd4 {[%clk 0:02:55.6]} 6... Rg8 {[%clk
0:03:00.1]} 7. Nc3 {[%clk 0:02:54]} 7... Nc6 {[%clk 0:03:00.5]} 8. Qxd5 {[%clk
0:02:48.5]} 8... Be6 {[%clk 0:03:01.2]} 9. Qb5 {[%clk 0:02:21.3]} 9... Rg5
{[%clk 0:02:53]} 10. Qxb7 {[%clk 0:01:59.8]} 10... Nb4 {[%clk 0:02:53]} 11. Rc1
{[%clk 0:01:23.5]} 11... Rb8 {[%clk 0:02:52.6]} 12. Qe4 {[%clk 0:01:21.3]} 12...
Bg7 {[%clk 0:02:48.4]} 13. Nf3 {[%clk 0:01:11.9]} 13... Rc5 {[%clk 0:02:44.8]}
14. e3 {[%clk 0:00:46.8]} 14... Nd5 {[%clk 0:01:55.3]} 15. Nxd5 {[%clk
0:00:37.8]} 15... Qxd5 {[%clk 0:01:46.5]} 16. Qxd5 {[%clk 0:00:35.8]} 16... Bxd5
{[%clk 0:01:47.4]} 17. Bd3 {[%clk 0:00:30.5]} 17... Bxb2 {[%clk 0:01:44.2]} 18.
Rd1 {[%clk 0:00:25]} 18... Bxa2 {[%clk 0:01:40.3]} 19. Rxh6 {[%clk 0:00:22]}
19... a5 {[%clk 0:01:40.9]} 20. Ke2 {[%clk 0:00:16.5]} 20... Ra8 {[%clk
0:01:31.9]} 21. Nd4 {[%clk 0:00:09.8]} 21... a4 {[%clk 0:01:29.7]} 22. Rxh7
{[%clk 0:00:08.5]} 22... Ke7 {[%clk 0:01:19]} 23. Nf5+ {[%clk 0:00:08.4]} 23...
Rxf5 {[%clk 0:00:57.5]} 24. Bxf5 {[%clk 0:00:07.6]} 24... a3 {[%clk 0:00:58.2]}
25. Rd7+ {[%clk 0:00:04.8]} 25... Kf6 {[%clk 0:00:57.7]} 26. g4 {[%clk
0:00:04.6]} 26... Bc4+ {[%clk 0:00:53.6]} 27. Kf3 {[%clk 0:00:04.8]} 27... a2
{[%clk 0:00:50.6]} 28. Rh6+ {[%clk 0:00:02.2]} 28... Kg7 {[%clk 0:00:50.1]} 29.
Rh7+ {[%clk 0:00:01.8]} 29... Kg8 {[%clk 0:00:49.3]} 30. Rh1 {[%clk 0:00:02.7]}
30... c5 {[%clk 0:00:29.5]} 31. Rc7 {[%clk 0:00:03]} 31... a1=Q {[%clk
0:00:04.4]} 32. Rxa1 {[%clk 0:00:01.7]} 32... Bxa1 {[%clk 0:00:03.9]} 33. Rxc5
{[%clk 0:00:02.2]} 33... Ba6 {[%clk 0:00:04]} 34. Rc6 {[%clk 0:00:02.3]} 34...
Bb7 {[%clk 0:00:03.7]} 35. Be4 {[%clk 0:00:02.9]} 35... Bxc6 {[%clk 0:00:04]}
36. Bxc6 {[%clk 0:00:03.8]} 36... Rc8 {[%clk 0:00:04.5]} 37. Be4 {[%clk
0:00:04.3]} 37... Bc3 {[%clk 0:00:04.8]} 38. Kg3 {[%clk 0:00:04.2]} 38... Rc5
{[%clk 0:00:04.4]} 39. f4 {[%clk 0:00:04.4]} 39... f6 {[%clk 0:00:04.8]} 40. Kf3
{[%clk 0:00:04.3]} 40... Kf8 {[%clk 0:00:05.2]} 41. Bd3 {[%clk 0:00:04.6]} 41...
Ke7 {[%clk 0:00:05.4]} 42. e4 {[%clk 0:00:05]} 42... Kd6 {[%clk 0:00:05.1]} 43.
Ke3 {[%clk 0:00:05.4]} 43... Bb2 {[%clk 0:00:04.9]} 44. Kf3 {[%clk 0:00:05.6]}
44... Bc1 {[%clk 0:00:05.2]} 45. Kg3 {[%clk 0:00:05.5]} 45... Rc3 {[%clk
0:00:04.9]} 46. Kf3 {[%clk 0:00:05.5]} 46... Kc5 {[%clk 0:00:05.2]} 47. e5
{[%clk 0:00:05.2]} 47... fxe5 {[%clk 0:00:05.7]} 48. f5 {[%clk 0:00:05.6]} 48...
Bg5 {[%clk 0:00:05.3]} 49. Ke4 {[%clk 0:00:05.4]} 49... Kd6 {[%clk 0:00:05.6]}
50. Kf3 {[%clk 0:00:04.3]} 50... Kd5 {[%clk 0:00:05.7]} 51. Ke2 {[%clk
0:00:02.6]} 51... e4 {[%clk 0:00:05.6]} 0-1

[Event "Early-Titled-Tuesday-Blitz-March-05-2024"]
[Site "Chess.com"]
[Date "2024.03.05"]
[Round "4"]
[White "KuzubovYuriy"]
[Black "AlexPapasimakopoulos"]
[Result "0-1"]
[WhiteElo "2965"]
[BlackElo "2751"]
[TimeControl "180+1"]
[EndTime "8:42:41 PST"]
[Termination "AlexPapasimakopoulos won by resignation"]

1. d4 {[%clk 0:03:00.9]} 1... e6 {[%clk 0:02:58.4]} 2. c4 {[%clk 0:03:00.5]}
2... d5 {[%clk 0:02:58.2]} 3. Nc3 {[%clk 0:03:00.2]} 3... a6 {[%clk 0:02:58.8]}
4. cxd5 {[%clk 0:03:00.1]} 4... exd5 {[%clk 0:02:59.7]} 5. Nf3 {[%clk
0:03:00.2]} 5... c6 {[%clk 0:03:00.2]} 6. Bf4 {[%clk 0:02:54.9]} 6... Bd6 {[%clk
0:03:00.4]} 7. e3 {[%clk 0:02:55]} 7... Bxf4 {[%clk 0:02:59.4]} 8. exf4 {[%clk
0:02:55.4]} 8... Bg4 {[%clk 0:03:00]} 9. h3 {[%clk 0:02:51.2]} 9... Bxf3 {[%clk
0:02:59.7]} 10. Qxf3 {[%clk 0:02:51.2]} 10... Ne7 {[%clk 0:02:51.8]} 11. Bd3
{[%clk 0:02:48.8]} 11... O-O {[%clk 0:02:51.5]} 12. Rd1 {[%clk 0:02:40.6]} 12...
Nd7 {[%clk 0:02:37.1]} 13. g3 {[%clk 0:02:38.2]} 13... Re8 {[%clk 0:02:36.7]}
14. Kf1 {[%clk 0:02:38.2]} 14... Nf8 {[%clk 0:02:34]} 15. Kg2 {[%clk 0:02:34.4]}
15... Qd7 {[%clk 0:02:31.7]} 16. Bc2 {[%clk 0:02:29.4]} 16... b5 {[%clk
0:02:24.1]} 17. Ne2 {[%clk 0:02:28.4]} 17... a5 {[%clk 0:02:21.7]} 18. Ng1
{[%clk 0:02:20.4]} 18... Nf5 {[%clk 0:02:14.1]} 19. Qg4 {[%clk 0:02:13.7]} 19...
Nd6 {[%clk 0:02:14]} 20. Nf3 {[%clk 0:01:50.2]} 20... Qxg4 {[%clk 0:02:12.9]}
21. hxg4 {[%clk 0:01:50.2]} 21... f6 {[%clk 0:02:13.6]} 22. Bd3 {[%clk
0:01:45.8]} 22... a4 {[%clk 0:02:06.7]} 23. Rc1 {[%clk 0:01:44.7]} 23... Nc4
{[%clk 0:02:06.6]} 24. b3 {[%clk 0:01:40.8]} 24... axb3 {[%clk 0:02:04.4]} 25.
axb3 {[%clk 0:01:41.7]} 25... Na5 {[%clk 0:02:00.2]} 26. Bc2 {[%clk 0:01:39.6]}
26... Re2 {[%clk 0:01:46.8]} 27. Kf1 {[%clk 0:01:30.7]} 27... Rae8 {[%clk
0:01:44.5]} 28. g5 {[%clk 0:01:26.3]} 28... Nb7 {[%clk 0:01:28.3]} 29. gxf6
{[%clk 0:01:22.7]} 29... gxf6 {[%clk 0:01:28.1]} 30. Bd1 {[%clk 0:01:10.4]}
30... R2e6 {[%clk 0:01:24.2]} 31. Kg2 {[%clk 0:01:00.9]} 31... b4 {[%clk
0:00:56.3]} 32. Bc2 {[%clk 0:00:53.5]} 32... Re2 {[%clk 0:00:54.3]} 33. Rhd1
{[%clk 0:00:51.4]} 33... Nd6 {[%clk 0:00:40.8]} 34. Kf1 {[%clk 0:00:45.9]} 34...
R2e7 {[%clk 0:00:24]} 35. Bd3 {[%clk 0:00:43.4]} 35... Rc8 {[%clk 0:00:22.6]}
36. Rc5 {[%clk 0:00:35.5]} 36... Ne4 {[%clk 0:00:21.1]} 37. Ra5 {[%clk
0:00:29.8]} 37... Nc3 {[%clk 0:00:17.8]} 38. Re1 {[%clk 0:00:24.7]} 38... Rec7
{[%clk 0:00:18.4]} 39. Bf5 {[%clk 0:00:23]} 39... Rb8 {[%clk 0:00:17.2]} 40.
Rea1 {[%clk 0:00:15.2]} 40... Nb5 {[%clk 0:00:15.5]} 41. Bd3 {[%clk 0:00:13.7]}
41... Nc3 {[%clk 0:00:11.5]} 42. Ra8 {[%clk 0:00:13.8]} 42... Rxa8 {[%clk
0:00:11.3]} 43. Rxa8 {[%clk 0:00:14.6]} 43... Kf7 {[%clk 0:00:11.5]} 44. f5
{[%clk 0:00:09.6]} 44... Kg7 {[%clk 0:00:08.6]} 45. Rb8 {[%clk 0:00:09.1]} 45...
Na2 {[%clk 0:00:06.1]} 46. Be2 {[%clk 0:00:07.3]} 46... Nd7 {[%clk 0:00:05.9]}
47. Ne1 {[%clk 0:00:05.7]} 47... Nxb8 {[%clk 0:00:04.7]} 48. Nd3 {[%clk
0:00:05.2]} 48... Nd7 {[%clk 0:00:04.4]} 49. Nf4 {[%clk 0:00:05.2]} 49... Nf8
{[%clk 0:00:03.6]} 50. Bf3 {[%clk 0:00:04.5]} 50... Nc3 {[%clk 0:00:03.7]} 51.
Ke1 {[%clk 0:00:04.7]} 51... Nb5 {[%clk 0:00:04.1]} 52. Kd1 {[%clk 0:00:04.9]}
52... Nxd4 {[%clk 0:00:03.7]} 53. Ne2 {[%clk 0:00:05.8]} 53... Nxb3 {[%clk
0:00:04.1]} 0-1

[Event "Early-Titled-Tuesday-Blitz-March-05-2024"]
[Site "Chess.com"]
[Date "2024.03.05"]
[Round "4"]
[White "BogdanDeac"]
[Black "GMSrinath"]
[Result "1-0"]
[WhiteElo "3004"]
[BlackElo "2814"]
[TimeControl "180+1"]
[EndTime "8:42:43 PST"]
[Termination "BogdanDeac won on time"]

1. d4 {[%clk 0:03:00.9]} 1... d5 {[%clk 0:02:59.1]} 2. c4 {[%clk 0:02:45.9]}
2... dxc4 {[%clk 0:03:00]} 3. Nf3 {[%clk 0:02:43]} 3... Nf6 {[%clk 0:02:59.7]}
4. e3 {[%clk 0:02:43.7]} 4... e6 {[%clk 0:02:59.9]} 5. Bxc4 {[%clk 0:02:44.4]}
5... a6 {[%clk 0:03:00.3]} 6. O-O {[%clk 0:02:45]} 6... c5 {[%clk 0:03:01]} 7.
Re1 {[%clk 0:02:45.5]} 7... Nc6 {[%clk 0:02:51.4]} 8. Nc3 {[%clk 0:02:45]} 8...
Be7 {[%clk 0:02:47.5]} 9. dxc5 {[%clk 0:02:43.5]} 9... Qxd1 {[%clk 0:02:45.5]}
10. Rxd1 {[%clk 0:02:44.4]} 10... Bxc5 {[%clk 0:02:45.6]} 11. a3 {[%clk
0:02:44.6]} 11... b5 {[%clk 0:02:42.6]} 12. Be2 {[%clk 0:02:38.2]} 12... Bb7
{[%clk 0:02:42.6]} 13. b4 {[%clk 0:02:37.7]} 13... Be7 {[%clk 0:02:37.7]} 14.
Bb2 {[%clk 0:02:37.4]} 14... O-O {[%clk 0:02:38.2]} 15. Rac1 {[%clk 0:02:37.5]}
15... Rac8 {[%clk 0:02:35.8]} 16. Nd2 {[%clk 0:02:32.1]} 16... Rfd8 {[%clk
0:02:05.2]} 17. Nb3 {[%clk 0:02:27.8]} 17... Rxd1+ {[%clk 0:02:06.1]} 18. Rxd1
{[%clk 0:02:28]} 18... Rd8 {[%clk 0:02:04.5]} 19. Rxd8+ {[%clk 0:01:34.9]} 19...
Nxd8 {[%clk 0:02:05.4]} 20. Na5 {[%clk 0:01:34.9]} 20... Ba8 {[%clk 0:01:59.6]}
21. Nb1 {[%clk 0:01:34.6]} 21... Kf8 {[%clk 0:01:31.7]} 22. Nd2 {[%clk
0:01:30.7]} 22... Bd5 {[%clk 0:01:22.9]} 23. f3 {[%clk 0:01:28]} 23... Ba8
{[%clk 0:01:16]} 24. e4 {[%clk 0:01:26.5]} 24... Nc6 {[%clk 0:01:14.2]} 25. Ndb3
{[%clk 0:01:12.9]} 25... Nxa5 {[%clk 0:01:10.9]} 26. Nxa5 {[%clk 0:01:13.8]}
26... Nd7 {[%clk 0:01:11]} 27. Kf2 {[%clk 0:01:11.4]} 27... Bd8 {[%clk
0:00:54.6]} 28. Ke3 {[%clk 0:00:48.2]} 28... e5 {[%clk 0:00:53.6]} 29. a4 {[%clk
0:00:29.4]} 29... bxa4 {[%clk 0:00:29.6]} 30. Bxa6 {[%clk 0:00:28.8]} 30... Be7
{[%clk 0:00:26.5]} 31. Ba3 {[%clk 0:00:18.8]} 31... Nb6 {[%clk 0:00:26.4]} 32.
Kd3 {[%clk 0:00:16.8]} 32... Ke8 {[%clk 0:00:25.1]} 33. Bb5+ {[%clk 0:00:13.7]}
33... Kd8 {[%clk 0:00:23.9]} 34. Nc4 {[%clk 0:00:14]} 34... Nxc4 {[%clk
0:00:15.1]} 35. Kxc4 {[%clk 0:00:12.3]} 35... Kc7 {[%clk 0:00:15]} 36. Bxa4
{[%clk 0:00:11.4]} 36... g6 {[%clk 0:00:13]} 37. Bb2 {[%clk 0:00:08.2]} 37... f6
{[%clk 0:00:12.7]} 38. Be8 {[%clk 0:00:08.2]} 38... Bb7 {[%clk 0:00:11.4]} 39.
b5 {[%clk 0:00:07.7]} 39... Bc8 {[%clk 0:00:08.5]} 40. Bf7 {[%clk 0:00:04.9]}
40... Bd7 {[%clk 0:00:07.9]} 41. Bc1 {[%clk 0:00:04.3]} 41... f5 {[%clk
0:00:05.3]} 42. Be3 {[%clk 0:00:04.1]} 42... Kb8 {[%clk 0:00:01.5]} 43. b6
{[%clk 0:00:04.1]} 43... fxe4 {[%clk 0:00:00.9]} 44. fxe4 {[%clk 0:00:04.4]}
44... Bc6 {[%clk 0:00:00.5]} 45. Bd5 {[%clk 0:00:04.7]} 1-0

[Event "Early-Titled-Tuesday-Blitz-March-05-2024"]
[Site "Chess.com"]
[Date "2024.03.05"]
[Round "4"]
[White "dealshark"]
[Black "Muracle"]
[Result "0-1"]
[WhiteElo "2321"]
[BlackElo "2509"]
[TimeControl "180+1"]
[EndTime "8:42:45 PST"]
[Termination "Muracle won by checkmate"]

1. Nf3 {[%clk 0:03:00.9]} 1... Nf6 {[%clk 0:02:43]} 2. c4 {[%clk 0:02:59.8]}
2... c6 {[%clk 0:02:43.2]} 3. e3 {[%clk 0:02:58.7]} 3... d5 {[%clk 0:02:43.6]}
4. Nc3 {[%clk 0:02:58.4]} 4... g6 {[%clk 0:02:43.7]} 5. b3 {[%clk 0:02:58.4]}
5... Bg7 {[%clk 0:02:44.3]} 6. Bb2 {[%clk 0:02:59]} 6... O-O {[%clk 0:02:43]} 7.
g3 {[%clk 0:02:57.2]} 7... a5 {[%clk 0:02:42.8]} 8. Bg2 {[%clk 0:02:56.3]} 8...
a4 {[%clk 0:02:39.5]} 9. Nxa4 {[%clk 0:02:46.1]} 9... dxc4 {[%clk 0:02:36.3]}
10. bxc4 {[%clk 0:02:40.9]} 10... Bf5 {[%clk 0:02:21.9]} 11. d4 {[%clk 0:02:26]}
11... Be6 {[%clk 0:02:07.7]} 12. Nd2 {[%clk 0:02:17.8]} 12... Nbd7 {[%clk
0:01:35.5]} 13. O-O {[%clk 0:02:10.9]} 13... Qa5 {[%clk 0:01:10.4]} 14. Nc3
{[%clk 0:02:03]} 14... Nb6 {[%clk 0:01:04.3]} 15. Qe2 {[%clk 0:01:54]} 15... Qa6
{[%clk 0:00:44.8]} 16. c5 {[%clk 0:01:40.8]} 16... Qxe2 {[%clk 0:00:38.8]} 17.
Nxe2 {[%clk 0:01:40]} 17... Na4 {[%clk 0:00:39.4]} 18. Rfb1 {[%clk 0:01:24.9]}
18... Nd7 {[%clk 0:00:33.3]} 19. Bc1 {[%clk 0:01:06.2]} 19... Naxc5 {[%clk
0:00:19.5]} 20. dxc5 {[%clk 0:01:07.1]} 20... Bxa1 {[%clk 0:00:18.2]} 21. Rxa1
{[%clk 0:01:07]} 21... Rxa2 {[%clk 0:00:13]} 22. Rxa2 {[%clk 0:01:06]} 22...
Bxa2 {[%clk 0:00:13.9]} 23. Ne4 {[%clk 0:01:00.4]} 23... f5 {[%clk 0:00:10.5]}
24. N4c3 {[%clk 0:00:57.1]} 24... Bc4 {[%clk 0:00:11.1]} 25. Bb2 {[%clk
0:00:35.6]} 25... Ra8 {[%clk 0:00:05.2]} 26. h4 {[%clk 0:00:29.7]} 26... Bxe2
{[%clk 0:00:04.6]} 27. Nxe2 {[%clk 0:00:24.2]} 27... Ra2 {[%clk 0:00:05.1]} 28.
Nd4 {[%clk 0:00:18.7]} 28... Rxb2 {[%clk 0:00:05.2]} 29. Bf3 {[%clk 0:00:16.1]}
29... Nxc5 {[%clk 0:00:05.6]} 30. Kg2 {[%clk 0:00:16]} 30... e5 {[%clk 0:00:06]}
31. Ne2 {[%clk 0:00:15]} 31... e4 {[%clk 0:00:06.5]} 32. Nd4 {[%clk 0:00:11.4]}
32... exf3+ {[%clk 0:00:07.4]} 33. Kxf3 {[%clk 0:00:12.1]} 33... Ne4 {[%clk
0:00:07.8]} 34. Kf4 {[%clk 0:00:11.9]} 34... Rxf2+ {[%clk 0:00:07]} 35. Ke5
{[%clk 0:00:12.8]} 35... Nxg3 {[%clk 0:00:07.2]} 36. Kf6 {[%clk 0:00:12.6]}
36... Ne4+ {[%clk 0:00:05.9]} 37. Ke7 {[%clk 0:00:12.2]} 37... c5 {[%clk
0:00:06.2]} 38. Ne6 {[%clk 0:00:12.4]} 38... c4 {[%clk 0:00:06.8]} 39. h5 {[%clk
0:00:12.9]} 39... gxh5 {[%clk 0:00:06.4]} 40. Nd4 {[%clk 0:00:11.8]} 40... c3
{[%clk 0:00:06.8]} 41. Ne6 {[%clk 0:00:11.9]} 41... b5 {[%clk 0:00:07.2]} 42.
Nd4 {[%clk 0:00:11.2]} 42... b4 {[%clk 0:00:07.7]} 43. Ke8 {[%clk 0:00:11.6]}
43... Kg7 {[%clk 0:00:07.8]} 44. Ne6+ {[%clk 0:00:12.5]} 44... Kg6 {[%clk
0:00:08.3]} 45. Nf4+ {[%clk 0:00:12.7]} 45... Rxf4 {[%clk 0:00:08.7]} 46. exf4
{[%clk 0:00:13.6]} 46... h4 {[%clk 0:00:09.6]} 47. Kf8 {[%clk 0:00:14.5]} 47...
Kh5 {[%clk 0:00:10.4]} 48. Kg8 {[%clk 0:00:15.2]} 48... Kg4 {[%clk 0:00:11.3]}
49. Kg7 {[%clk 0:00:16]} 49... h5 {[%clk 0:00:12]} 50. Kh6 {[%clk 0:00:16.9]}
50... Ng3 {[%clk 0:00:11.6]} 51. Kg6 {[%clk 0:00:17.2]} 51... Kxf4 {[%clk
0:00:12.5]} 52. Kh6 {[%clk 0:00:17.7]} 52... b3 {[%clk 0:00:13.3]} 53. Kg6
{[%clk 0:00:18.5]} 53... b2 {[%clk 0:00:14.2]} 54. Kh6 {[%clk 0:00:19.3]} 54...
c2 {[%clk 0:00:15.1]} 55. Kg6 {[%clk 0:00:20.2]} 55... b1=Q {[%clk 0:00:15.7]}
56. Kh7 {[%clk 0:00:21.1]} 56... c1=Q {[%clk 0:00:16.1]} 57. Kh6 {[%clk
0:00:22]} 57... h3 {[%clk 0:00:16.6]} 58. Kg6 {[%clk 0:00:22.9]} 58... h2 {[%clk
0:00:17.3]} 59. Kg7 {[%clk 0:00:23.8]} 59... h1=Q {[%clk 0:00:17.8]} 60. Kh7
{[%clk 0:00:24.7]} 60... h4 {[%clk 0:00:18.4]} 61. Kh6 {[%clk 0:00:25.6]} 61...
h3 {[%clk 0:00:19.1]} 62. Kg6 {[%clk 0:00:26.5]} 62... h2 {[%clk 0:00:19.7]} 63.
Kf6 {[%clk 0:00:27.4]} 63... Ne4+ {[%clk 0:00:19.9]} 64. Ke6 {[%clk 0:00:28.3]}
64... Qf3 {[%clk 0:00:18.9]} 65. Kd5 {[%clk 0:00:29.2]} 65... h1=Q {[%clk
0:00:18.5]} 66. Kd4 {[%clk 0:00:30]} 66... Qb6+ {[%clk 0:00:17.7]} 67. Kd5
{[%clk 0:00:29.5]} 67... Nf6# {[%clk 0:00:16.6]} 0-1

[Event "Early-Titled-Tuesday-Blitz-March-05-2024"]
[Site "Chess.com"]
[Date "2024.03.05"]
[Round "4"]
[White "C_K_G"]
[Black "mertfelin"]
[Result "0-1"]
[WhiteElo "2163"]
[BlackElo "2342"]
[TimeControl "180+1"]
[EndTime "8:42:45 PST"]
[Termination "mertfelin won on time"]

1. e4 {[%clk 0:03:00.3]} 1... e5 {[%clk 0:03:00.4]} 2. Nf3 {[%clk 0:03:00]} 2...
Nc6 {[%clk 0:03:00.8]} 3. Bc4 {[%clk 0:03:00.2]} 3... Bc5 {[%clk 0:03:00.7]} 4.
c3 {[%clk 0:03:00.4]} 4... Nf6 {[%clk 0:03:01.1]} 5. d4 {[%clk 0:03:00.2]} 5...
exd4 {[%clk 0:03:02]} 6. cxd4 {[%clk 0:03:00]} 6... Bb4+ {[%clk 0:03:02.4]} 7.
Nc3 {[%clk 0:03:00.9]} 7... Nxe4 {[%clk 0:03:03]} 8. O-O {[%clk 0:02:59.6]} 8...
Bxc3 {[%clk 0:03:03.6]} 9. d5 {[%clk 0:02:58.6]} 9... Bf6 {[%clk 0:03:04.5]} 10.
Re1 {[%clk 0:02:57.4]} 10... Ne7 {[%clk 0:03:05.2]} 11. Rxe4 {[%clk 0:02:56.7]}
11... d6 {[%clk 0:03:05.9]} 12. Bg5 {[%clk 0:02:50.9]} 12... Bxg5 {[%clk
0:03:06]} 13. Nxg5 {[%clk 0:02:50.7]} 13... h6 {[%clk 0:03:06.8]} 14. Qe2 {[%clk
0:02:49.3]} 14... hxg5 {[%clk 0:03:05.6]} 15. Re1 {[%clk 0:02:49.1]} 15... Be6
{[%clk 0:03:06.4]} 16. dxe6 {[%clk 0:02:49.2]} 16... f6 {[%clk 0:03:07.1]} 17.
Re3 {[%clk 0:02:36.8]} 17... Kf8 {[%clk 0:03:03.6]} 18. Rh3 {[%clk 0:02:31.4]}
18... Rxh3 {[%clk 0:03:03.8]} 19. gxh3 {[%clk 0:02:29.6]} 19... g6 {[%clk
0:03:04.5]} 20. Qg4 {[%clk 0:01:38.6]} 20... d5 {[%clk 0:03:01.4]} 21. Bd3
{[%clk 0:01:33.4]} 21... Kg7 {[%clk 0:02:59.4]} 22. f4 {[%clk 0:01:20.1]} 22...
gxf4 {[%clk 0:02:49.2]} 23. Qxf4 {[%clk 0:01:19.6]} 23... c5 {[%clk 0:02:20.2]}
24. Kh1 {[%clk 0:01:18.6]} 24... d4 {[%clk 0:02:16.1]} 25. Rg1 {[%clk
0:01:13.8]} 25... Qd5+ {[%clk 0:02:10.1]} 26. Be4 {[%clk 0:01:11.1]} 26... Qxe6
{[%clk 0:02:09.8]} 27. Bxb7 {[%clk 0:01:05.9]} 27... Rd8 {[%clk 0:02:02.1]} 28.
Qg3 {[%clk 0:01:01.1]} 28... d3 {[%clk 0:01:56.3]} 29. Bf3 {[%clk 0:00:56.1]}
29... d2 {[%clk 0:01:30.7]} 30. h4 {[%clk 0:00:50.6]} 30... Rd3 {[%clk
0:01:16.2]} 31. Qg2 {[%clk 0:00:46.6]} 31... Qf5 {[%clk 0:01:11.5]} 32. Bd1
{[%clk 0:00:41.7]} 32... Rd4 {[%clk 0:01:06.1]} 33. h5 {[%clk 0:00:36.4]} 33...
g5 {[%clk 0:00:58.5]} 34. Qb7 {[%clk 0:00:30.6]} 34... Qd5+ {[%clk 0:00:53.4]}
35. Qxd5 {[%clk 0:00:29.9]} 35... Rxd5 {[%clk 0:00:54.3]} 36. Kg2 {[%clk
0:00:28.6]} 36... Nf5 {[%clk 0:00:52.6]} 37. Kf3 {[%clk 0:00:28.8]} 37... Kh6
{[%clk 0:00:30.6]} 38. Ke4 {[%clk 0:00:18.7]} 38... Re5+ {[%clk 0:00:29.6]} 39.
Kd3 {[%clk 0:00:18.6]} 39... Nd4 {[%clk 0:00:29.2]} 40. Kxd2 {[%clk 0:00:17.1]}
40... f5 {[%clk 0:00:29.9]} 41. Kd3 {[%clk 0:00:14.3]} 41... f4 {[%clk
0:00:28.6]} 42. a3 {[%clk 0:00:11.4]} 42... Re3+ {[%clk 0:00:27.6]} 43. Kc4
{[%clk 0:00:11]} 43... f3 {[%clk 0:00:28.4]} 44. Kxc5 {[%clk 0:00:10]} 44...
Ne6+ {[%clk 0:00:28.8]} 45. Kd5 {[%clk 0:00:08.5]} 45... Nf4+ {[%clk 0:00:29.3]}
46. Kd4 {[%clk 0:00:08.4]} 46... f2 {[%clk 0:00:29.5]} 47. Rf1 {[%clk
0:00:08.4]} 47... Re1 {[%clk 0:00:29.5]} 48. Rxf2 {[%clk 0:00:05.6]} 48... Rxd1+
{[%clk 0:00:30.2]} 49. Kc3 {[%clk 0:00:04.3]} 49... Kxh5 {[%clk 0:00:29.5]} 50.
b4 {[%clk 0:00:03.7]} 50... Rd3+ {[%clk 0:00:29.2]} 51. Kb2 {[%clk 0:00:03.3]}
51... Kg6 {[%clk 0:00:27.6]} 52. Rc2 {[%clk 0:00:02.1]} 52... Rd6 {[%clk
0:00:25.6]} 53. Rc7 {[%clk 0:00:01.8]} 53... a6 {[%clk 0:00:26.1]} 0-1